[Event "Czech Championship 2022"]
[Site "Usti nad Labem"]
[Date "2022.05.15"]
[Round "2.22"]
[White "Babula, Vlastimil jr"]
[Black "Ocelak, Jakub"]
[Result "0-1"]
[ECO "C10"]
[WhiteElo "2217"]
[BlackElo "2060"]
[Annotator "TA"]
[PlyCount "92"]
[EventDate "2022.05.12"]
[EventType "swiss"]
[EventCountry "CZE"]
[SourceTitle "playchess.com"]
[Source "ChessBase"]
[SourceQuality "1"]
[TimeControl "40/5400+30:1800+30"]

{[%evp 9,92,-4,2,0,0,-23,-19,-16,-11,-27,0,-11,21,18,10,0,0,0,0,-15,-6,-41,-50,-38,-43,-36,-29,-38,-41,-35,17,37,26,13,19,13,13,13,13,13,51,13,13,-274,-267,-394,-397,-435,-435,-431,-414,-435,-434,-426,-393,-410,-347,-356,0,-411,-396,-441,-427,-419,-431,-406,-388,-491,-479,-495,-505,-502,-495,-448,-354,-505,-489,-493,-489,-478,-464,-498,-491,-418,-416]} 1. e4 {[%emt 0:00:03]} e6 {[%emt 0:03:01]} 2. d4 {[%emt 0:00:07]} d5 {[%emt 0:00:05]} 3. Nc3 {[%emt 0:00:03]} Nc6 {[%emt 0:00:04]} 4. e5 {[%emt 0:01:53]} f6 {[%emt 0:00:54]} 5. exf6 {[%emt 0:02:54]} Nxf6 {[%emt 0:06:41]} 6. Nf3 {[%emt 0:01:17] C10: French with 3 Nc3: Unusual Black 3rd moves and 3...dxe4.} Bd6 {[%emt 0:05:34]} 7. Bg5 {[%emt 0:07:37]} O-O {[%emt 0:05:48]} 8. Be2 {[%emt 0:01:38] The position is equal.} Bd7 {[%emt 0:05:57]} 9. O-O {[%emt 0:02:48] [#]} Be8 $146 {[%emt 0:02:08]} ({Predecessor:} 9... a6 10. Re1 Qe8 11. Qd2 Nh5 12. Ne5 Nxe5 13. Bxh5 Qxh5 14. dxe5 Bb4 15. a3 Bxc3 16. bxc3 {0-1 (79) Bochis,J (2151)-Akermann,T (2123) Baden 2017}) 10. Nb5 {[%emt 0:12:01]} a6 {[%emt 0:12:24]} 11. Nxd6 {[%emt 0:00:57]} cxd6 {[%emt 0:00:01]} 12. c4 {[%emt 0:05:43]} dxc4 {[%emt 0:00:08]} 13. Bxc4 {[%emt 0:00:47]} d5 {[%emt 0:00:01]} 14. Be2 {[%emt 0:23:13]} Qb6 {[%emt 0:04:16]} 15. Qb3 {[%emt 0:09:25]} Qxb3 {[%emt 0:08:46]} 16. axb3 {[%emt 0:00:04]} Ne4 {[%emt 0:04:36][%cal Of8f3] Strongly threatening ...Rxf3!} 17. Be3 {[%emt 0:01:37]} Bh5 {[%emt 0:02:14]} 18. h3 {[%emt 0:02:28]} Bxf3 {[%emt 0:05:30]} 19. Bxf3 {[%emt 0:02:31]} Rxf3 {[%emt 0:00:43]} 20. gxf3 $11 {[%emt 0:00:11]} Nd6 {[%emt 0:00:04]} 21. Rfd1 {[%emt 0:04:33]} Rf8 {[%emt 0:01:16] Prevents Bf4.} 22. f4 {[%emt 0:00:31]} Kf7 {[%emt 0:05:18]} 23. Kf1 {[%emt 0:01:21]} Ke7 {[%emt 0:01:23]} 24. Ke2 {[%emt 0:00:29]} Kd7 {[%emt 0:01:33]} 25. Kd3 {[%emt 0:08:57]} Nf5 {[%emt 0:03:41]} 26. f3 $2 {[%emt 0:05:12][%mdl 8192] [#]} (26. Rd2 $11 {and White is okay.}) 26... Nb4+ $1 $19 {[%emt 0:07:43][%mdl 64] Deflection. Pair of Knights!} 27. Kc3 {[%emt 0:01:48]} (27. Kd2 {keeps fighting.} Nxe3 28. Kxe3 Nc2+ 29. Kf2 Nxa1 30. Rxa1) 27... Nxe3 {[%emt 0:00:16]} 28. Rg1 {[%emt 0:00:04] [#]} g6 {[%emt 0:07:59]} 29. Kxb4 {[%emt 0:01:02][%mdl 4096] Endgame KRR-KRN} Nc2+ {[%emt 0:00:01]} 30. Kc3 {[%emt 0:00:13]} Nxa1 {[%emt 0:00:07]} 31. Rxa1 {[%emt 0:00:10]} Rxf4 {[%emt 0:00:03] KR-KR} 32. Rf1 {[%emt 0:00:07]} Rh4 {[%emt 0:01:27]} 33. Rh1 {[%emt 0:00:06]} Rf4 {[%emt 0:00:02]} 34. Rf1 {[%emt 0:00:05]} Kd6 {[%emt 0:02:48]} 35. Kd3 {[%emt 0:00:07]} e5 {[%emt 0:00:37]} 36. dxe5+ {[%emt 0:00:10]} Kxe5 {[%emt 0:00:04]} 37. Re1+ {[%emt 0:00:45]} Kd6 {[%emt 0:00:07]} 38. Rf1 {[%emt 0:00:25]} Rb4 {[%emt 0:01:58]} 39. Kc3 {[%emt 0:00:02]} Rh4 {[%emt 0:00:26]} 40. Rh1 {[%emt 0:00:06]} Ke5 {[%emt 0:01:54]} 41. Kd3 {[%emt 0:30:09]} Rd4+ {[%emt 0:06:38]} 42. Kc3 {[%emt 0:00:00]} (42. Kc2 {was the only defense.}) 42... Rf4 {[%emt 0:00:08]} 43. Re1+ {[%emt 0:00:00]} Kf6 {[%emt 0:00:11]} 44. Rf1 {[%emt 0:00:00]} Kg5 {[%emt 0:00:54]} 45. Kd3 {[%emt 0:00:00]} Kh4 {[%emt 0:02:09]} 46. Ke2 {[%emt 0:00:00]} Rb4 {[%emt 0:01:47] Weighted Error Value: White=0.36/Black=0.17 (very precise)} 0-1

[Event "Czech Championship 2022"]
[Site "Usti nad Labem"]
[Date "2022.05.15"]
[Round "2.23"]
[White "Jun, Rudolf"]
[Black "Sura, Jaroslav"]
[Result "1/2-1/2"]
[ECO "B06"]
[WhiteElo "2183"]
[BlackElo "2010"]
[Annotator "TA"]
[PlyCount "135"]
[EventDate "2022.05.12"]
[EventType "swiss"]
[EventCountry "CZE"]
[SourceTitle "playchess.com"]
[Source "ChessBase"]
[SourceQuality "1"]
[TimeControl "40/5400+30:1800+30"]

{[%evp 9,135,31,17,16,11,0,87,-29,-29,-31,-33,-39,-36,-30,-29,-116,-123,-147,-45,-46,-54,-83,-63,-63,-63,-54,-48,-44,-49,-49,-47,-48,-45,-80,-19,-134,-128,-145,-133,-134,-117,-117,-117,-117,0,0,0,-129,-116,-142,0,-156,-172,-206,-173,-170,-152,-148,0,-148,0,-185,-185,-187,-176,-179,-179,-239,-213,-209,-231,-335,-332,-329,-251,-315,-320,-312,-231,-247,-283,-283,-283,-282,-275,-263,-263,-254,-250,-225,-216,-223,-157,-157,-96,-416,-416,-433,0,0,0,0,0,0,0,0,0,0,0,0,0,0,0,0,0,0,0,0,0,0,0,0,0,0,0,0,0,0]} 1. e4 {[%emt 0:00:03]} g6 {[%emt 0:00:04]} 2. d4 {[%emt 0:00:22]} Bg7 {[%emt 0:00:05]} 3. f4 {[%emt 0:00:18]} d6 {[%emt 0:00:48]} 4. Nf3 {[%emt 0:00:16]} Nd7 {[%emt 0:00:38]} 5. Bc4 {[%emt 0:01:53]} e6 {[%emt 0:00:44]} 6. O-O {[%emt 0:00:46][%cal Of4f5] B06: Modern Defence.} Ne7 {[%emt 0:00:39][%cal Bg8e7,Be7f5,Bf5e3,Be3g4][%mdl 32] Against f5} 7. f5 {[%emt 0:07:59]} Nb6 {[%emt 0:09:06] [#]} (7... gxf5 $11 {remains equal.} 8. Nc3 O-O) 8. Ng5 {[%emt 0:08:12] [#] White is more active.} Nxc4 $146 {[%emt 0:09:35]} ({Predecessor:} 8... gxf5 9. Qh5 Bxd4+ 10. Kh1 Ng6 11. exf5 Nxc4 12. Nxf7 Qf6 13. Nxh8 exf5 14. Nxg6 hxg6 {1-0 (35) Freitag,J (2068)-Werremeyer,A (1781) Germany 2007}) 9. f6 {[%emt 0:01:00] [#]} Bxf6 {[%emt 0:08:27]} 10. Rxf6 {[%emt 0:00:30] [#]} Nf5 $1 {[%emt 0:01:08]} 11. Rxf7 {[%emt 0:14:12]} Nfe3 {[%emt 0:05:40]} 12. Qf3 {[%emt 0:02:20]} Qxg5 $17 {[%emt 0:00:49]} 13. b3 {[%emt 0:06:30] [#]} Qg4 {[%emt 0:16:07]} 14. Qxg4 $15 {[%emt 0:09:52]} (14. bxc4 Qxf3 15. Rxf3 Nxc2 $17) 14... Nxg4 {[%emt 0:00:28] Pair of Knights!} 15. Rf3 {[%emt 0:00:32] [#]} e5 $1 {[%emt 0:12:35][%cal Oe5d4]} 16. d5 {[%emt 0:05:49]} Nb6 {[%emt 0:06:03] Threatens to win with ...Rf8.} 17. h3 {[%emt 0:00:18] [#]} Rf8 $1 {[%emt 0:06:07]} 18. Rxf8+ {[%emt 0:01:07]} (18. hxg4 Bxg4) 18... Kxf8 {[%emt 0:00:03]} 19. hxg4 {[%emt 0:00:08]} Bxg4 {[%emt 0:00:06]} 20. Bh6+ {[%emt 0:00:11]} Ke7 {[%emt 0:01:35]} 21. c4 {[%emt 0:00:30]} a5 {[%emt 0:02:59]} (21... Kf6 $17 {And now ...g5 would win.} 22. Be3 Nd7) 22. a4 {[%emt 0:02:04]} (22. Nc3 $11) 22... Nd7 $17 {[%emt 0:01:19]} 23. Nc3 {[%emt 0:07:29]} Nc5 {[%emt 0:03:53]} 24. Rf1 {[%emt 0:04:54]} Bd7 {[%emt 0:06:06]} (24... Nxb3 $6 25. Bg5+ Ke8 26. Nb5 $11) 25. Bg5+ {[%emt 0:03:03]} Ke8 {[%emt 0:00:17]} 26. Bh6 {[%emt 0:02:42]} Ke7 {[%emt 0:00:05] Prevents Rf8.} (26... Rd8 $17 27. Rb1 b6) 27. Bg5+ $11 {[%emt 0:00:14]} Ke8 {[%emt 0:00:05]} 28. Be3 {[%emt 0:00:07]} (28. Bh6 $11 Rc8 29. Rb1) 28... b6 $17 {[%emt 0:01:16]} ({Weaker is} 28... Nxb3 29. Rb1 Nd4 30. Rxb7 $15) 29. Bh6 {[%emt 0:01:35] aiming for Rf8+.} Ke7 {[%emt 0:00:30] Against Rf8} ({Black should try} 29... Rc8 $17 30. Rb1 Kf7 31. Rf1+ Kg8) 30. Kh2 $2 {[%emt 0:03:44]} (30. Bg5+ $11 Ke8 31. Bh6) 30... Rg8 {[%emt 0:00:38] Hoping for ...g5.} 31. Bg5+ {[%emt 0:01:21]} Ke8 {[%emt 0:00:05]} 32. Rb1 {[%emt 0:00:54]} Nd3 {[%emt 0:02:43]} 33. Rf1 {[%emt 0:01:36]} Nc5 {[%emt 0:00:27]} 34. Rb1 {[%emt 0:00:07]} Nd3 {[%emt 0:02:10]} ({Better is} 34... Rf8 $17 {White must now prevent ...Rf2.} 35. Kg3 h5) 35. Kg3 $2 {[%emt 0:00:53]} (35. Rf1 $1 $11 {and White is okay.}) 35... Rf8 $19 {[%emt 0:00:27]} 36. Rh1 {[%emt 0:00:27]} Rf7 {[%emt 0:01:02]} 37. Be3 {[%emt 0:00:22]} Nf4 {[%emt 0:02:46]} 38. Bxf4 {[%emt 0:00:13]} (38. Nb5 $142 Bxb5 39. cxb5) 38... exf4+ {[%emt 0:00:05][%mdl 4096] Endgame KRB-KRN} 39. Kf2 {[%emt 0:00:25]} h5 {[%emt 0:01:04]} 40. e5 {[%emt 0:00:54]} (40. Nb5 $142 Bg4 41. Re1) 40... dxe5 {[%emt 0:00:42]} 41. Re1 {[%emt 0:30:14]} Rf5 {[%emt 0:31:00]} 42. Ne4 {[%emt 0:00:07]} Ke7 {[%emt 0:00:00]} 43. Rd1 {[%emt 0:00:00]} g5 {[%emt 0:00:00] Strongly threatening ...c5.} 44. d6+ {[%emt 0:00:00]} Kd8 {[%emt 0:00:00]} 45. c5 {[%emt 0:00:00]} Bc6 {[%emt 0:00:00]} 46. dxc7+ {[%emt 0:00:00]} Kxc7 {[%emt 0:00:00]} 47. Nd6 {[%emt 0:00:00]} Rf8 {[%emt 0:00:00]} 48. cxb6+ {[%emt 0:00:00]} Kxb6 {[%emt 0:00:00]} 49. Nc4+ {[%emt 0:00:00]} Kc7 {[%emt 0:00:00] ...e4 is the strong threat.} 50. Nxe5 {[%emt 0:00:00]} g4 {[%emt 0:00:00][%cal Bg5g4,Bg4g3][%mdl 32]} 51. Rc1 {[%emt 0:00:00]} Rf6 {[%emt 0:00:00]} 52. Rc4 $2 {[%emt 0:00:00][%mdl 8192] [#]} (52. Kg1 $17) 52... g3+ $1 {[%emt 0:00:00]} 53. Ke2 {[%emt 0:00:00] [#]} Kb6 {[%emt 0:00:00]} ({Not} 53... Re6 54. Rxc6+ Rxc6 55. Nxc6 Kxc6 56. Kf3 $11) (53... Kb7 $1 $19 54. Kf1 (54. Nxc6 $2 f3+ 55. gxf3 Rxc6 $19) 54... Bd5) 54. Rxc6+ $11 {[%emt 0:00:00] The position is equal.} ({Don't go for} 54. Nxc6 $2 f3+ 55. gxf3 Rxc6 $19) 54... Rxc6 {[%emt 0:00:00]} 55. Nxc6 {[%emt 0:00:00]} Kxc6 {[%emt 0:00:00] KP-KP} 56. Kf3 {[%emt 0:00:00]} Kc5 {[%emt 0:00:00]} 57. Kxf4 {[%emt 0:00:00]} Kb4 {[%emt 0:00:00]} (57... h4 $5 58. Kg4 Kb4 59. Kxh4 Kxb3 60. Kxg3 Kxa4 $11) 58. Kxg3 {[%emt 0:00:00]} Kxb3 {[%emt 0:00:00]} 59. Kh4 {[%emt 0:00:00]} Kxa4 {[%emt 0:00:00]} 60. Kxh5 {[%emt 0:00:00] KP-KP} Kb4 {[%emt 0:01:23]} 61. g4 {[%emt 0:00:00]} a4 {[%emt 0:00:18]} 62. g5 {[%emt 0:00:00]} a3 {[%emt 0:00:02] ( -> ...a2)} 63. g6 {[%emt 0:00:00]} a2 {[%emt 0:00:03]} 64. g7 {[%emt 0:00:00]} a1=Q {[%emt 0:00:07]} 65. g8=Q {[%emt 0:00:00]} Qh1+ {[%emt 0:00:16]} 66. Kg6 {[%emt 0:00:00]} Qg2+ {[%emt 0:00:05]} 67. Kf7 {[%emt 0:00:00]} Qxg8+ {[%emt 0:00:12]} 68. Kxg8 {[%emt 0:00:00] Black had all chances to win.  Weighted Error Value: White=0.38/Black=0.33} 1/2-1/2

[Event "Czech Championship 2022"]
[Site "Usti nad Labem"]
[Date "2022.05.15"]
[Round "2.24"]
[White "Bokhnak, Timofey"]
[Black "Krivanek, Vladimir"]
[Result "0-1"]
[ECO "B06"]
[WhiteElo "2060"]
[BlackElo "2180"]
[Annotator "TA"]
[PlyCount "100"]
[EventDate "2022.05.12"]
[EventType "swiss"]
[EventCountry "CZE"]
[SourceTitle "playchess.com"]
[Source "ChessBase"]
[SourceQuality "1"]
[TimeControl "40/5400+30:1800+30"]

{[%evp 9,100,24,22,2,11,0,0,-29,-18,-39,-18,-18,-4,-41,-24,-36,-19,-34,-36,-33,0,0,2,2,13,2,0,0,21,0,0,0,0,0,18,25,36,18,25,25,36,36,37,29,35,0,-19,-8,-19,-31,60,57,69,37,54,59,36,0,0,0,0,-20,0,-10,0,-14,0,0,0,0,0,0,0,-10,-10,-422,-388,-701,-686,-677,-670,-637,-613,-979,-945,-818,-802,-6207,-9589,-6863,-5514,-29977,-6299]} 1. e4 {[%emt 1:31:00]} g6 {[%emt 0:08:09]} 2. d4 {[%emt 0:00:00]} Bg7 {[%emt 0:00:07]} 3. c3 {[%emt 0:00:00]} b6 {[%emt 0:02:39]} 4. Be3 {[%emt 0:00:00]} Bb7 {[%emt 0:00:28]} 5. Nd2 {[%emt 0:00:00]} d6 {[%emt 0:00:53]} 6. Bc4 {[%emt 0:00:00] B06: Modern Defence.} Nf6 {[%emt 0:01:45]} 7. f3 {[%emt 0:00:00]} O-O {[%emt 0:02:33]} 8. Ne2 {[%emt 0:00:00] [#] The position is equal.} d5 $146 {[%emt 0:01:49]} ({Predecessor:} 8... e5 9. dxe5 dxe5 10. Qc2 Qe7 11. O-O-O Nc6 12. g4 Na5 13. Bd3 Rad8 14. Ng3 c5 {0-1 (32) Sepulveda,L-Veloso,P (2035) Brasilia 1993}) 9. Bd3 {[%emt 0:00:00]} dxe4 {[%emt 0:04:05]} 10. Nxe4 {[%emt 0:00:00]} Nd5 {[%emt 0:02:14][%cal Bf6d5,Bd5e7,Be7c8,Bc8d6][%mdl 32]} 11. Bd2 {[%emt 0:00:00]} Nd7 {[%emt 0:03:43]} 12. O-O {[%emt 0:00:00]} e5 {[%emt 0:03:03]} 13. c4 {[%emt 0:00:00]} Ne7 {[%emt 0:01:04]} 14. d5 {[%emt 0:00:00]} h6 {[%emt 0:05:29]} 15. Bb4 {[%emt 0:00:00]} f5 {[%emt 0:23:09]} 16. N4c3 {[%emt 0:00:00]} Rf6 {[%emt 0:04:09]} 17. Qb3 {[%emt 0:00:00][%cal Oc4c5]} Kh8 {[%emt 0:04:13]} 18. Rad1 {[%emt 0:00:00]} Nc8 {[%emt 0:05:33]} 19. f4 {[%emt 0:00:00]} a5 {[%emt 0:06:56]} 20. fxe5 {[%emt 0:00:00]} Nxe5 {[%emt 0:00:25]} 21. Ba3 {[%emt 0:00:00]} Nd6 {[%emt 0:00:30]} 22. Nf4 {[%emt 0:00:00]} Ba6 {[%emt 0:04:49]} 23. Nb5 {[%emt 0:00:00]} a4 {[%emt 0:05:11]} 24. Qc2 {[%emt 0:00:00]} Nxd3 {[%emt 0:02:55]} 25. Qxd3 {[%emt 0:00:00] aiming for Bxd6.} Bxb5 {[%emt 0:02:07]} 26. cxb5 {[%emt 0:00:00] Hoping for Rc1.} Qd7 $1 {[%emt 0:00:48]} 27. Ne6 {[%emt 0:00:00]} (27. Bxd6 $14 Rxd6 28. b4) 27... Nxb5 $11 {[%emt 0:01:02]} 28. Bb4 {[%emt 0:00:00]} c5 {[%emt 0:01:15]} 29. Be1 {[%emt 0:00:00]} Rxe6 {[%emt 0:01:24]} (29... Re8 $15) 30. dxe6 $14 {[%emt 0:00:00]} Qxd3 {[%emt 0:00:25]} 31. Rxd3 {[%emt 0:00:00]} Re8 {[%emt 0:00:20]} 32. Bc3 {[%emt 0:00:00]} Rxe6 {[%emt 0:01:01]} 33. Bxg7+ {[%emt 0:00:00]} Kxg7 {[%emt 0:00:01][%mdl 4096] Endgame KRR-KRN} 34. Rfd1 {[%emt 0:00:00]} Nd4 {[%emt 0:00:39]} 35. R3d2 {[%emt 0:00:00]} Re4 {[%emt 0:00:25]} 36. Kf1 {[%emt 0:00:00]} Rh4 {[%emt 0:01:27]} 37. h3 {[%emt 0:00:00]} g5 {[%emt 0:00:49][%cal Bg6g5,Bg5g4,Bg4g3][%mdl 32]} 38. Re1 {[%emt 0:00:00]} Kf7 {[%emt 0:00:39]} 39. Re3 {[%emt 0:00:00]} h5 {[%emt 0:00:32]} 40. Rf2 {[%emt 0:00:00]} g4 {[%emt 0:00:57]} 41. Ra3 {[%emt 0:33:43]} Kf6 {[%emt 0:05:37]} 42. Rxa4 $2 {[%emt 0:00:00][%mdl 8192] [#] White does not recover from this.} (42. Re3 $11 {and White is okay.}) 42... g3 $1 $19 {[%emt 0:01:42]} ({Stronger than} 42... gxh3 43. gxh3 Rxh3 44. Ra6 $11) 43. Rd2 {[%emt 0:00:00]} (43. Rxd4 Rxd4 44. Rc2) 43... Rf4+ {[%emt 0:01:19]} 44. Ke1 {[%emt 0:00:00] [#]} Nf3+ $1 {[%emt 0:01:23][%mdl 512]} 45. gxf3 {[%emt 0:00:00]} Rxa4 {[%emt 0:00:05] KR-KR} 46. Kf1 {[%emt 0:00:00]} Ke5 {[%emt 0:07:35]} 47. b3 {[%emt 0:00:00]} Rd4 {[%emt 0:00:58]} 48. Re2+ {[%emt 0:00:00]} Kf4 {[%emt 0:00:17]} 49. Kg2 {[%emt 0:00:00]} h4 {[%emt 0:00:12] Threatens to win with ...Rd3.} 50. Rc2 {[%emt 0:00:00]} Ke3 {[%emt 0:00:30] Weighted Error Value: White=0.80/Black=0.08 (flawless)} 0-1